[Event "Titled Tuesday Blitz April 26 Late 2022"]
[White "Migot, Tangi"]
[Black "Khanin, Semen"]
[WhiteFideId "662445"]
[BlackFideId "4111990"]
[WhiteElo "2515"]
[BlackElo "2442"]
[Result "0-1"]
[Round "03"]
[TimeControl "180+1"]
[Date "2022.04.26"]
[WhiteClock "0:00:19"]
[BlackClock "0:00:05"]

1. g3 {[%clk 0:03:00]}  g6 {[%clk 0:02:59]} 2. Bg2 {[%clk 0:03:00]}  Bg7 {[%clk 0:03:00]} 3. Nf3 {[%clk 0:02:59]}  e5 {[%clk 0:03:00]} 4. O-O {[%clk 0:03:00]}  Ne7 {[%clk 0:03:00]} 5. d4 {[%clk 0:03:00]}  e4 {[%clk 0:02:58]} 6. Nfd2 {[%clk 0:03:00]}  d5 {[%clk 0:02:58]} 7. c4 {[%clk 0:02:59]}  c6 {[%clk 0:02:58]} 8. cxd5 {[%clk 0:02:58]}  cxd5 {[%clk 0:02:59]} 9. Nb3 {[%clk 0:02:58]}  O-O {[%clk 0:02:58]} 10. Nc3 {[%clk 0:02:58]}  Nbc6 {[%clk 0:02:58]} 11. e3 {[%clk 0:02:50]}  Bf5 {[%clk 0:02:53]} 12. h3 {[%clk 0:02:50]}  h5 {[%clk 0:02:52]} 13. Bd2 {[%clk 0:02:49]}  b6 {[%clk 0:02:51]} 14. Rc1 {[%clk 0:02:48]}  Qd7 {[%clk 0:02:52]} 15. Kh2 {[%clk 0:02:47]}  Rac8 {[%clk 0:02:52]} 16. Qe2 {[%clk 0:02:46]}  a5 {[%clk 0:02:37]} 17. a3 {[%clk 0:02:38]}  Na7 {[%clk 0:02:27]} 18. Na1 {[%clk 0:02:34]}  b5 {[%clk 0:02:21]} 19. Na2 {[%clk 0:02:34]}  Nec6 {[%clk 0:01:46]} 20. Nb3 {[%clk 0:02:31]}  Qd8 {[%clk 0:01:21]} 21. Nc5 {[%clk 0:02:30]}  Re8 {[%clk 0:01:19]} 22. Nc3 {[%clk 0:02:17]}  Qd6 {[%clk 0:00:56]} 23. Nxb5 {[%clk 0:02:00]}  Nxb5 {[%clk 0:00:56]} 24. Qxb5 {[%clk 0:02:01]}  h4 {[%clk 0:00:46]} 25. b4 {[%clk 0:01:39]}  axb4 {[%clk 0:00:45]} 26. Bxb4 {[%clk 0:01:38]}  Nxb4 {[%clk 0:00:42]} 27. Qxb4 {[%clk 0:01:34]}  Bh6 {[%clk 0:00:37]} 28. Rc3 {[%clk 0:01:27]}  Rb8 {[%clk 0:00:36]} 29. Qa4 {[%clk 0:01:20]}  Rec8 {[%clk 0:00:28]} 30. Qc2 {[%clk 0:01:11]}  Re8 {[%clk 0:00:23]} 31. Rb1 {[%clk 0:01:05]}  Rxb1 {[%clk 0:00:22]} 32. Qxb1 {[%clk 0:01:06]}  Rb8 {[%clk 0:00:22]} 33. Rb3 {[%clk 0:01:03]}  Re8 {[%clk 0:00:11]} 34. a4 {[%clk 0:00:47]}  Qc7 {[%clk 0:00:11]} 35. Rb7 {[%clk 0:00:42]}  hxg3+ {[%clk 0:00:11]} 36. fxg3 {[%clk 0:00:42]}  Qa5 {[%clk 0:00:11]} 37. Rb3 {[%clk 0:00:32]}  Qd2 {[%clk 0:00:11]} 38. Qg1 {[%clk 0:00:29]}  Ra8 {[%clk 0:00:05]} 39. g4 {[%clk 0:00:24]}  Bc8 {[%clk 0:00:04]} 40. Kg3 {[%clk 0:00:23]}  Bf8 {[%clk 0:00:04]} 41. h4 {[%clk 0:00:20]}  Bd6+ {[%clk 0:00:05]} 42. Kh3 {[%clk 0:00:20]}  Qe2 {[%clk 0:00:05]} 43. Qf1 {[%clk 0:00:19]}  Bxg4# {[%clk 0:00:05]} 0-1


[Site "https://www.chess.com"]

[Event "Titled Tuesday Blitz April 26 Late 2022"]
[White "Moral Garcia, Serafin"]
[Black "Ivanisevic, Ivan"]
[WhiteFideId "2201925"]
[BlackFideId "912417"]
[WhiteElo "2228"]
[BlackElo "2495"]
[Result "0-1"]
[Round "03"]
[TimeControl "180+1"]
[Date "2022.04.26"]
[WhiteClock "0:00:06"]
[BlackClock "0:00:07"]

1. e4 {[%clk 0:03:00]}  e5 {[%clk 0:02:59]} 2. Nf3 {[%clk 0:02:59]}  Nc6 {[%clk 0:03:00]} 3. Bb5 {[%clk 0:02:59]}  a6 {[%clk 0:03:00]} 4. Bxc6 {[%clk 0:03:00]}  dxc6 {[%clk 0:02:59]} 5. O-O {[%clk 0:03:00]}  Qe7 {[%clk 0:02:57]} 6. d4 {[%clk 0:02:59]}  exd4 {[%clk 0:02:56]} 7. Qxd4 {[%clk 0:02:59]}  Qc5 {[%clk 0:02:52]} 8. Be3 {[%clk 0:02:54]}  Qxd4 {[%clk 0:02:51]} 9. Bxd4 {[%clk 0:02:54]}  Bd7 {[%clk 0:02:48]} 10. Ne5 {[%clk 0:02:53]}  Be6 {[%clk 0:02:47]} 11. f3 {[%clk 0:02:48]}  c5 {[%clk 0:02:47]} 12. Bc3 {[%clk 0:02:48]}  f6 {[%clk 0:02:46]} 13. Nd3 {[%clk 0:02:46]}  O-O-O {[%clk 0:02:46]} 14. Nf4 {[%clk 0:02:44]}  Bf7 {[%clk 0:02:45]} 15. Nd2 {[%clk 0:02:38]}  Bd6 {[%clk 0:02:44]} 16. Ne2 {[%clk 0:02:31]}  b5 {[%clk 0:02:43]} 17. Nb3 {[%clk 0:02:26]}  Ne7 {[%clk 0:02:40]} 18. Rad1 {[%clk 0:02:25]}  Nc6 {[%clk 0:02:37]} 19. Nbc1 {[%clk 0:02:17]}  c4 {[%clk 0:02:28]} 20. g3 {[%clk 0:02:11]}  Rhe8 {[%clk 0:02:24]} 21. Kg2 {[%clk 0:02:04]}  b4 {[%clk 0:02:22]} 22. Be1 {[%clk 0:02:04]}  a5 {[%clk 0:02:20]} 23. Bf2 {[%clk 0:02:03]}  Be5 {[%clk 0:02:18]} 24. c3 {[%clk 0:02:00]}  Bd6 {[%clk 0:01:58]} 25. Rd2 {[%clk 0:01:46]}  Ne5 {[%clk 0:01:54]} 26. Rfd1 {[%clk 0:01:43]}  Nd3 {[%clk 0:01:27]} 27. Nxd3 {[%clk 0:01:42]}  cxd3 {[%clk 0:01:28]} 28. Nc1 {[%clk 0:01:31]}  bxc3 {[%clk 0:01:27]} 29. bxc3 {[%clk 0:01:31]}  Be5 {[%clk 0:01:27]} 30. Rxd3 {[%clk 0:01:23]}  Bxc3 {[%clk 0:01:14]} 31. Rxd8+ {[%clk 0:01:19]}  Rxd8 {[%clk 0:01:15]} 32. Rxd8+ {[%clk 0:01:19]}  Kxd8 {[%clk 0:01:15]} 33. Be3 {[%clk 0:01:17]}  Kd7 {[%clk 0:01:13]} 34. Kf2 {[%clk 0:01:17]}  Kc6 {[%clk 0:01:12]} 35. Ke2 {[%clk 0:01:12]}  Bc4+ {[%clk 0:01:08]} 36. Kd1 {[%clk 0:01:12]}  Kb5 {[%clk 0:01:08]} 37. Kc2 {[%clk 0:01:12]}  Be5 {[%clk 0:01:02]} 38. Nb3 {[%clk 0:01:10]}  a4 {[%clk 0:00:45]} 39. Nd4+ {[%clk 0:01:09]}  Bxd4 {[%clk 0:00:41]} 40. Bxd4 {[%clk 0:01:09]}  Bxa2 {[%clk 0:00:42]} 41. f4 {[%clk 0:01:07]}  Kc4 {[%clk 0:00:38]} 42. Bb2 {[%clk 0:01:05]}  Bb3+ {[%clk 0:00:37]} 43. Kd2 {[%clk 0:01:04]}  c5 {[%clk 0:00:32]} 44. e5 {[%clk 0:01:03]}  fxe5 {[%clk 0:00:26]} 45. Bxe5 {[%clk 0:01:03]}  g6 {[%clk 0:00:25]} 46. g4 {[%clk 0:01:03]}  Kd5 {[%clk 0:00:21]} 47. Ke3 {[%clk 0:01:03]}  c4 {[%clk 0:00:20]} 48. h4 {[%clk 0:01:02]}  a3 {[%clk 0:00:20]} 49. Bg7 {[%clk 0:00:52]}  Bd1 {[%clk 0:00:20]} 50. g5 {[%clk 0:00:51]}  Bg4 {[%clk 0:00:19]} 51. Be5 {[%clk 0:00:51]}  Bf5 {[%clk 0:00:19]} 52. Bc3 {[%clk 0:00:50]}  Kc5 {[%clk 0:00:18]} 53. Kd2 {[%clk 0:00:48]}  Kb5 {[%clk 0:00:17]} 54. Bf6 {[%clk 0:00:42]}  Kb4 {[%clk 0:00:17]} 55. Be5 {[%clk 0:00:40]}  Kb3 {[%clk 0:00:17]} 56. Bf6 {[%clk 0:00:36]}  Bd3 {[%clk 0:00:16]} 57. Bg7 {[%clk 0:00:36]}  Ka4 {[%clk 0:00:14]} 58. Bf6 {[%clk 0:00:30]}  Kb5 {[%clk 0:00:14]} 59. Bg7 {[%clk 0:00:26]}  Kc6 {[%clk 0:00:14]} 60. Bf8 {[%clk 0:00:20]}  a2 {[%clk 0:00:14]} 61. Bg7 {[%clk 0:00:20]}  Kd5 {[%clk 0:00:15]} 62. Ke3 {[%clk 0:00:19]}  Ke6 {[%clk 0:00:14]} 63. Be5 {[%clk 0:00:15]}  Kf5 {[%clk 0:00:14]} 64. Bg7 {[%clk 0:00:15]}  Kg4 {[%clk 0:00:14]} 65. Be5 {[%clk 0:00:15]}  Kxh4 {[%clk 0:00:13]} 66. Bg7 {[%clk 0:00:15]}  Kg4 {[%clk 0:00:12]} 67. Be5 {[%clk 0:00:15]}  Kh5 {[%clk 0:00:08]} 68. Bg7 {[%clk 0:00:15]}  Bb1 {[%clk 0:00:08]} 69. Bc3 {[%clk 0:00:15]}  h6 {[%clk 0:00:08]} 70. gxh6 {[%clk 0:00:15]}  Kxh6 {[%clk 0:00:09]} 71. Bd4 {[%clk 0:00:15]}  Kh5 {[%clk 0:00:09]} 72. Bc3 {[%clk 0:00:16]}  Kg4 {[%clk 0:00:09]} 73. Bd4 {[%clk 0:00:16]}  Kf5 {[%clk 0:00:09]} 74. Bc3 {[%clk 0:00:16]}  Ke6 {[%clk 0:00:09]} 75. Kd4 {[%clk 0:00:16]}  Bd3 {[%clk 0:00:07]} 76. Ba1 {[%clk 0:00:15]}  Kd6 {[%clk 0:00:06]} 77. Bc3 {[%clk 0:00:13]}  Kc6 {[%clk 0:00:06]} 78. Ba1 {[%clk 0:00:13]}  Kb5 {[%clk 0:00:07]} 79. Kc3 {[%clk 0:00:14]}  Ka4 {[%clk 0:00:06]} 80. Bb2 {[%clk 0:00:14]}  Kb5 {[%clk 0:00:06]} 81. Ba1 {[%clk 0:00:13]}  Kc5 {[%clk 0:00:06]} 82. Bb2 {[%clk 0:00:13]}  Kd5 {[%clk 0:00:06]} 83. Kd2 {[%clk 0:00:08]}  Ke4 {[%clk 0:00:06]} 84. Be5 {[%clk 0:00:08]}  a1=Q {[%clk 0:00:06]} 85. Bxa1 {[%clk 0:00:07]}  Kxf4 {[%clk 0:00:07]} 86. Bd4 {[%clk 0:00:06]}  g5 {[%clk 0:00:07]} 0-1


[Site "https://www.chess.com"]

[Event "Titled Tuesday Blitz April 26 Late 2022"]
[White "Mortazavi, Ali"]
[Black "Pasti, Aron"]
[WhiteFideId "401323"]
[BlackFideId "785857"]
[WhiteElo "2339"]
[BlackElo "2133"]
[Result "0-1"]
[Round "03"]
[TimeControl "180+1"]
[Date "2022.04.26"]
[WhiteClock "0:00:15"]
[BlackClock "0:00:10"]

1. Nf3 {[%clk 0:02:59]}  d5 {[%clk 0:02:59]} 2. g3 {[%clk 0:02:59]}  c6 {[%clk 0:02:52]} 3. Bg2 {[%clk 0:02:59]}  Bg4 {[%clk 0:02:52]} 4. O-O {[%clk 0:03:00]}  Nd7 {[%clk 0:02:50]} 5. d3 {[%clk 0:03:01]}  e6 {[%clk 0:02:50]} 6. c4 {[%clk 0:03:00]}  Bd6 {[%clk 0:02:50]} 7. Be3 {[%clk 0:03:01]}  Ne7 {[%clk 0:02:48]} 8. Qb3 {[%clk 0:03:01]}  O-O {[%clk 0:02:38]} 9. Qxb7 {[%clk 0:02:54]}  Bc5 {[%clk 0:02:26]} 10. Bxc5 {[%clk 0:02:46]}  Nxc5 {[%clk 0:02:26]} 11. Qb4 {[%clk 0:02:46]}  Nd7 {[%clk 0:02:19]} 12. Nbd2 {[%clk 0:02:35]}  Rb8 {[%clk 0:02:19]} 13. Qa3 {[%clk 0:02:35]}  Nc8 {[%clk 0:02:13]} 14. b3 {[%clk 0:02:23]}  e5 {[%clk 0:01:53]} 15. cxd5 {[%clk 0:02:13]}  cxd5 {[%clk 0:01:54]} 16. Rfe1 {[%clk 0:01:58]}  f5 {[%clk 0:01:41]} 17. e3 {[%clk 0:01:38]}  Qf6 {[%clk 0:01:37]} 18. Rac1 {[%clk 0:01:30]}  Ncb6 {[%clk 0:01:31]} 19. Rc7 {[%clk 0:01:23]}  f4 {[%clk 0:01:29]} 20. exf4 {[%clk 0:01:15]}  exf4 {[%clk 0:01:30]} 21. Qe7 {[%clk 0:01:07]}  fxg3 {[%clk 0:01:25]} 22. hxg3 {[%clk 0:01:07]}  Qg6 {[%clk 0:01:17]} 23. Qg5 {[%clk 0:00:46]}  Qxg5 {[%clk 0:01:04]} 24. Nxg5 {[%clk 0:00:46]}  Rbe8 {[%clk 0:01:04]} 25. Rxe8 {[%clk 0:00:38]}  Rxe8 {[%clk 0:01:05]} 26. Bf3 {[%clk 0:00:35]}  Bf5 {[%clk 0:00:52]} 27. a4 {[%clk 0:00:31]}  h6 {[%clk 0:00:52]} 28. a5 {[%clk 0:00:30]}  hxg5 {[%clk 0:00:43]} 29. axb6 {[%clk 0:00:30]}  Nxb6 {[%clk 0:00:44]} 30. Rxa7 {[%clk 0:00:28]}  Bxd3 {[%clk 0:00:43]} 31. Rb7 {[%clk 0:00:27]}  Re6 {[%clk 0:00:43]} 32. b4 {[%clk 0:00:23]}  Rd6 {[%clk 0:00:34]} 33. Nb3 {[%clk 0:00:22]}  g4 {[%clk 0:00:25]} 34. Bxg4 {[%clk 0:00:18]}  Be4 {[%clk 0:00:25]} 35. Nd4 {[%clk 0:00:18]}  Nc4 {[%clk 0:00:23]} 36. f3 {[%clk 0:00:15]}  Bg6 {[%clk 0:00:21]} 37. Be6+ {[%clk 0:00:15]}  Kh7 {[%clk 0:00:19]} 38. b5 {[%clk 0:00:14]}  Ne5 {[%clk 0:00:14]} 39. Kg2 {[%clk 0:00:13]}  Bd3 {[%clk 0:00:09]} 40. g4 {[%clk 0:00:13]}  Nc4 {[%clk 0:00:07]} 41. Rd7 {[%clk 0:00:12]}  Rb6 {[%clk 0:00:04]} 42. Rxd5 {[%clk 0:00:11]}  Ne3+ {[%clk 0:00:04]} 43. Kg3 {[%clk 0:00:12]}  Nxd5 {[%clk 0:00:05]} 44. Bxd5 {[%clk 0:00:12]}  Bxb5 {[%clk 0:00:05]} 45. Be4+ {[%clk 0:00:11]}  Kh8 {[%clk 0:00:04]} 46. g5 {[%clk 0:00:10]}  Be8 {[%clk 0:00:03]} 47. Kg4 {[%clk 0:00:10]}  g6 {[%clk 0:00:03]} 48. Kf4 {[%clk 0:00:10]}  Kg7 {[%clk 0:00:03]} 49. Bd5 {[%clk 0:00:10]}  Bf7 {[%clk 0:00:03]} 50. Be4 {[%clk 0:00:10]}  Rb4 {[%clk 0:00:03]} 51. Ke5 {[%clk 0:00:11]}  Ra4 {[%clk 0:00:02]} 52. f4 {[%clk 0:00:11]}  Ra5+ {[%clk 0:00:03]} 53. Kd6 {[%clk 0:00:12]}  Ra4 {[%clk 0:00:02]} 54. Kc5 {[%clk 0:00:11]}  Rc4+ {[%clk 0:00:02]} 55. Kd6 {[%clk 0:00:10]}  Rxd4+ {[%clk 0:00:03]} 56. Ke5 {[%clk 0:00:11]}  Ra4 {[%clk 0:00:03]} 57. Bf3 {[%clk 0:00:11]}  Ra5+ {[%clk 0:00:04]} 58. Kd4 {[%clk 0:00:11]}  Be8 {[%clk 0:00:04]} 59. Be4 {[%clk 0:00:12]}  Ra4+ {[%clk 0:00:05]} 60. Ke5 {[%clk 0:00:12]}  Rxe4+ {[%clk 0:00:03]} 61. Kxe4 {[%clk 0:00:12]}  Bd7 {[%clk 0:00:04]} 62. Ke5 {[%clk 0:00:13]}  Bf5 {[%clk 0:00:04]} 63. Kd6 {[%clk 0:00:13]}  Kf7 {[%clk 0:00:05]} 64. Ke5 {[%clk 0:00:14]}  Ke7 {[%clk 0:00:06]} 65. Kd4 {[%clk 0:00:14]}  Kd6 {[%clk 0:00:06]} 66. Ke3 {[%clk 0:00:15]}  Kd5 {[%clk 0:00:07]} 67. Kf3 {[%clk 0:00:15]}  Kd4 {[%clk 0:00:08]} 68. Kg3 {[%clk 0:00:15]}  Ke4 {[%clk 0:00:09]} 69. Kh4 {[%clk 0:00:15]}  Be6 {[%clk 0:00:08]} 70. Kg3 {[%clk 0:00:14]}  Kf5 {[%clk 0:00:08]} 71. Kh4 {[%clk 0:00:14]}  Bd5 {[%clk 0:00:08]} 72. Kg3 {[%clk 0:00:14]}  Bc6 {[%clk 0:00:09]} 73. Kh4 {[%clk 0:00:14]}  Kxf4 {[%clk 0:00:09]} 74. Kh3 {[%clk 0:00:15]}  Kxg5 {[%clk 0:00:09]} 75. Kg3 {[%clk 0:00:15]}  Kf5 {[%clk 0:00:10]} 0-1


[Site "https://www.chess.com"]

[Event "Titled Tuesday Blitz April 26 Late 2022"]
[White "Moussard, Jules"]
[Black "Sarana, Alexey"]
[WhiteFideId "642908"]
[BlackFideId "24133795"]
[WhiteElo "2589"]
[BlackElo "2666"]
[Result "1-0"]
[Round "03"]
[TimeControl "180+1"]
[Date "2022.04.26"]
[WhiteClock "0:00:55"]
[BlackClock "0:00:09"]

1. Nf3 {[%clk 0:03:00]}  d5 {[%clk 0:02:56]} 2. b3 {[%clk 0:03:01]}  Nf6 {[%clk 0:02:56]} 3. Bb2 {[%clk 0:03:01]}  Bf5 {[%clk 0:02:57]} 4. g3 {[%clk 0:03:01]}  e6 {[%clk 0:02:57]} 5. Bg2 {[%clk 0:03:02]}  h6 {[%clk 0:02:58]} 6. O-O {[%clk 0:03:03]}  Nbd7 {[%clk 0:02:56]} 7. c4 {[%clk 0:03:03]}  Be7 {[%clk 0:02:55]} 8. d3 {[%clk 0:03:03]}  O-O {[%clk 0:02:53]} 9. Nbd2 {[%clk 0:03:04]}  a5 {[%clk 0:02:53]} 10. a3 {[%clk 0:03:04]}  Bh7 {[%clk 0:02:52]} 11. Qc2 {[%clk 0:03:00]}  c6 {[%clk 0:02:50]} 12. Rfe1 {[%clk 0:02:55]}  Qb8 {[%clk 0:02:50]} 13. Rad1 {[%clk 0:02:53]}  b5 {[%clk 0:02:47]} 14. cxd5 {[%clk 0:02:51]}  cxd5 {[%clk 0:02:47]} 15. Qb1 {[%clk 0:02:49]}  Rc8 {[%clk 0:02:47]} 16. Rc1 {[%clk 0:02:49]}  Qa7 {[%clk 0:02:44]} 17. Bd4 {[%clk 0:02:43]}  Bc5 {[%clk 0:02:36]} 18. Rxc5 {[%clk 0:02:41]}  Nxc5 {[%clk 0:02:37]} 19. b4 {[%clk 0:02:41]}  axb4 {[%clk 0:02:29]} 20. axb4 {[%clk 0:02:42]}  Nxd3 {[%clk 0:02:15]} 21. Bxa7 {[%clk 0:02:37]}  Nxe1 {[%clk 0:02:12]} 22. Qxe1 {[%clk 0:02:38]}  Rxa7 {[%clk 0:02:12]} 23. Nb3 {[%clk 0:02:38]}  Ne4 {[%clk 0:01:55]} 24. Nfd4 {[%clk 0:02:36]}  Nc3 {[%clk 0:01:55]} 25. Nc5 {[%clk 0:02:25]}  Ra3 {[%clk 0:01:55]} 26. f4 {[%clk 0:02:24]}  Rca8 {[%clk 0:01:47]} 27. Kf2 {[%clk 0:02:21]}  Bg6 {[%clk 0:01:28]} 28. Bf3 {[%clk 0:02:21]}  h5 {[%clk 0:01:27]} 29. h3 {[%clk 0:02:21]}  Ne4+ {[%clk 0:01:02]} 30. Bxe4 {[%clk 0:02:21]}  dxe4 {[%clk 0:01:03]} 31. Nxb5 {[%clk 0:02:16]}  Ra1 {[%clk 0:00:56]} 32. Qc3 {[%clk 0:02:15]}  Rh1 {[%clk 0:00:54]} 33. Nd6 {[%clk 0:02:00]}  Rh2+ {[%clk 0:00:52]} 34. Ke3 {[%clk 0:01:59]}  Rxh3 {[%clk 0:00:51]} 35. Kd4 {[%clk 0:01:59]}  h4 {[%clk 0:00:48]} 36. Ncxe4 {[%clk 0:01:34]}  Bxe4 {[%clk 0:00:38]} 37. Nxe4 {[%clk 0:01:33]}  Rd8+ {[%clk 0:00:39]} 38. Ke3 {[%clk 0:01:26]}  hxg3 {[%clk 0:00:38]} 39. Qc7 {[%clk 0:01:18]}  Rf8 {[%clk 0:00:38]} 40. Kf3 {[%clk 0:01:16]}  g2+ {[%clk 0:00:28]} 41. Kxg2 {[%clk 0:01:16]}  Rb3 {[%clk 0:00:29]} 42. Qd6 {[%clk 0:01:12]}  Rc8 {[%clk 0:00:29]} 43. Kf2 {[%clk 0:01:08]}  Rb2 {[%clk 0:00:19]} 44. Qe7 {[%clk 0:00:56]}  Rf8 {[%clk 0:00:10]} 45. Ng5 {[%clk 0:00:55]}  Rxb4 {[%clk 0:00:09]} 46. Qxb4 {[%clk 0:00:55]} 1-0


[Site "https://www.chess.com"]

[Event "Titled Tuesday Blitz April 26 Late 2022"]
[White "Peterson, Eric"]
[Black "Sanchez Alvares, Kelvin Antonio"]
[WhiteFideId "14908395"]
[BlackFideId "3906680"]
[WhiteElo "2195"]
[BlackElo "2193"]
[Result "1/2-1/2"]
[Round "03"]
[TimeControl "180+1"]
[Date "2022.04.26"]
[WhiteClock "0:00:19"]
[BlackClock "0:01:20"]

1. e4 {[%clk 0:03:00]}  c5 {[%clk 0:02:58]} 2. d4 {[%clk 0:03:00]}  cxd4 {[%clk 0:02:58]} 3. c3 {[%clk 0:03:01]}  d3 {[%clk 0:02:59]} 4. Bxd3 {[%clk 0:03:00]}  e6 {[%clk 0:02:58]} 5. Nf3 {[%clk 0:03:00]}  a6 {[%clk 0:02:59]} 6. O-O {[%clk 0:03:01]}  Qc7 {[%clk 0:02:58]} 7. Qe2 {[%clk 0:02:57]}  Nc6 {[%clk 0:02:58]} 8. c4 {[%clk 0:02:57]}  Bd6 {[%clk 0:02:55]} 9. Nc3 {[%clk 0:02:57]}  Nf6 {[%clk 0:02:52]} 10. h3 {[%clk 0:02:56]}  h5 {[%clk 0:02:52]} 11. Be3 {[%clk 0:02:55]}  Ng4 {[%clk 0:02:49]} 12. c5 {[%clk 0:02:43]}  Bh2+ {[%clk 0:02:40]} 13. Kh1 {[%clk 0:02:41]}  Nxe3 {[%clk 0:02:40]} 14. Qxe3 {[%clk 0:02:36]}  Bf4 {[%clk 0:02:37]} 15. Qe2 {[%clk 0:02:33]}  g5 {[%clk 0:02:36]} 16. Rfe1 {[%clk 0:01:46]}  g4 {[%clk 0:02:33]} 17. Nh4 {[%clk 0:01:45]}  Nd4 {[%clk 0:02:23]} 18. Qd1 {[%clk 0:01:42]}  Qxc5 {[%clk 0:02:20]} 19. g3 {[%clk 0:01:38]}  Bb8 {[%clk 0:02:17]} 20. hxg4 {[%clk 0:01:30]}  hxg4 {[%clk 0:02:10]} 21. Qxg4 {[%clk 0:01:30]}  Qh5 {[%clk 0:02:05]} 22. Qxh5 {[%clk 0:01:25]}  Rxh5 {[%clk 0:02:06]} 23. Rad1 {[%clk 0:01:19]}  b5 {[%clk 0:02:05]} 24. Kg2 {[%clk 0:01:16]}  Bb7 {[%clk 0:02:02]} 25. Bb1 {[%clk 0:01:12]}  Ba7 {[%clk 0:02:00]} 26. Ne2 {[%clk 0:01:06]}  Nxe2 {[%clk 0:01:58]} 27. Rxe2 {[%clk 0:01:05]}  O-O-O {[%clk 0:01:57]} 28. Rc2+ {[%clk 0:01:02]}  Kb8 {[%clk 0:01:55]} 29. f3 {[%clk 0:00:57]}  d5 {[%clk 0:01:55]} 30. Rcd2 {[%clk 0:00:53]}  Rg8 {[%clk 0:01:49]} 31. Kh3 {[%clk 0:00:36]}  Rhg5 {[%clk 0:01:46]} 32. g4 {[%clk 0:00:34]}  dxe4 {[%clk 0:01:46]} 33. Bxe4 {[%clk 0:00:27]}  Bxe4 {[%clk 0:01:45]} 34. fxe4 {[%clk 0:00:27]}  Rxg4 {[%clk 0:01:39]} 35. Rd8+ {[%clk 0:00:26]}  Rxd8 {[%clk 0:01:37]} 36. Rxd8+ {[%clk 0:00:24]}  Kc7 {[%clk 0:01:37]} 37. Ra8 {[%clk 0:00:21]}  Rxe4 {[%clk 0:01:31]} 38. Rxa7+ {[%clk 0:00:20]}  Kb6 {[%clk 0:01:32]} 39. Rxf7 {[%clk 0:00:21]}  Re2 {[%clk 0:01:31]} 40. b3 {[%clk 0:00:20]}  Rxa2 {[%clk 0:01:29]} 41. Rf3 {[%clk 0:00:20]}  a5 {[%clk 0:01:28]} 42. Ng6 {[%clk 0:00:21]}  Re2 {[%clk 0:01:27]} 43. Ne7 {[%clk 0:00:20]}  Kc5 {[%clk 0:01:26]} 44. Kg3 {[%clk 0:00:20]}  Kb4 {[%clk 0:01:26]} 45. Kf4 {[%clk 0:00:19]}  Rb2 {[%clk 0:01:25]} 46. Nc6+ {[%clk 0:00:19]}  Kc5 {[%clk 0:01:25]} 47. Nxa5 {[%clk 0:00:19]}  Kb4 {[%clk 0:01:24]} 48. Nc6+ {[%clk 0:00:19]}  Kc5 {[%clk 0:01:22]} 49. Ne5 {[%clk 0:00:19]}  Kd4 {[%clk 0:01:19]} 50. Nc6+ {[%clk 0:00:19]}  Kc5 {[%clk 0:01:20]} 51. Ne5 {[%clk 0:00:19]}  Kd4 {[%clk 0:01:20]} 52. Nc6+ {[%clk 0:00:19]}  Kc5 {[%clk 0:01:20]} 1/2-1/2


[Site "https://www.chess.com"]

[Event "Titled Tuesday Blitz April 26 Late 2022"]
[White "Pinheiro, Iung Alicio de O."]
[Black "Fier, Alexandr"]
[WhiteFideId "2104350"]
[BlackFideId "2107139"]
[WhiteElo "2460"]
[BlackElo "2571"]
[Result "1-0"]
[Round "03"]
[TimeControl "180+1"]
[Date "2022.04.26"]
[WhiteClock "0:00:32"]
[BlackClock "0:00:42"]

1. c4 {[%clk 0:02:59]}  Nf6 {[%clk 0:02:18]} 2. g3 {[%clk 0:02:59]}  e6 {[%clk 0:02:17]} 3. Bg2 {[%clk 0:02:59]}  d5 {[%clk 0:02:16]} 4. Nf3 {[%clk 0:03:00]}  dxc4 {[%clk 0:02:15]} 5. O-O {[%clk 0:03:00]}  c6 {[%clk 0:02:15]} 6. Nc3 {[%clk 0:02:44]}  b5 {[%clk 0:02:12]} 7. d3 {[%clk 0:02:39]}  cxd3 {[%clk 0:02:11]} 8. Ne5 {[%clk 0:02:39]}  Nd5 {[%clk 0:02:06]} 9. Nxd5 {[%clk 0:02:16]}  exd5 {[%clk 0:02:00]} 10. exd3 {[%clk 0:02:16]}  Be7 {[%clk 0:01:59]} 11. a4 {[%clk 0:02:06]}  b4 {[%clk 0:01:53]} 12. d4 {[%clk 0:01:58]}  O-O {[%clk 0:01:50]} 13. Qh5 {[%clk 0:01:58]}  Nd7 {[%clk 0:01:44]} 14. Nxc6 {[%clk 0:01:55]}  Nf6 {[%clk 0:01:43]} 15. Qe2 {[%clk 0:01:36]}  Bg4 {[%clk 0:01:34]} 16. Qxe7 {[%clk 0:01:31]}  Qb6 {[%clk 0:01:33]} 17. Qc5 {[%clk 0:01:26]}  Qb7 {[%clk 0:01:27]} 18. Ne7+ {[%clk 0:01:15]}  Kh8 {[%clk 0:01:27]} 19. Nxd5 {[%clk 0:01:16]}  Qa6 {[%clk 0:01:15]} 20. Nxf6 {[%clk 0:01:09]}  Qxf6 {[%clk 0:01:12]} 21. Bg5 {[%clk 0:01:05]}  Qg6 {[%clk 0:01:09]} 22. Bxa8 {[%clk 0:01:03]}  Rxa8 {[%clk 0:01:10]} 23. Qd5 {[%clk 0:00:56]}  Rg8 {[%clk 0:01:05]} 24. Kg2 {[%clk 0:00:48]}  Qh5 {[%clk 0:00:59]} 25. h4 {[%clk 0:00:45]}  f6 {[%clk 0:00:59]} 26. f3 {[%clk 0:00:43]}  Bc8 {[%clk 0:00:58]} 27. g4 {[%clk 0:00:43]}  Qg6 {[%clk 0:00:54]} 28. Bf4 {[%clk 0:00:42]}  f5 {[%clk 0:00:51]} 29. h5 {[%clk 0:00:40]}  Qa6 {[%clk 0:00:51]} 30. g5 {[%clk 0:00:33]}  Bb7 {[%clk 0:00:42]} 31. Qb5 {[%clk 0:00:32]} 1-0


[Site "https://www.chess.com"]